[Event "Titled Tuesday Blitz February 01 A 2022"]
[White "Shyaamnikhil P"]
[Black "Zhigalko, Sergei"]
[WhiteFideId "5024218"]
[BlackFideId "13502956"]
[WhiteElo "2292"]
[BlackElo "2662"]
[Result "1/2-1/2"]
[Round "05"]
[TimeControl "180+1"]
[Date "2022.02.01"]
[WhiteClock "0:00:11"]
[BlackClock "0:00:02"]

1. d4 {[%clk 0:03:00]}  Nf6 {[%clk 0:02:58]} 2. Nf3 {[%clk 0:03:01]}  e6 {[%clk 0:02:59]} 3. e3 {[%clk 0:03:01]}  b6 {[%clk 0:02:59]} 4. Bd3 {[%clk 0:03:01]}  Bb7 {[%clk 0:02:59]} 5. O-O {[%clk 0:02:59]}  d5 {[%clk 0:03:00]} 6. c4 {[%clk 0:02:58]}  Bd6 {[%clk 0:03:00]} 7. Nc3 {[%clk 0:02:57]}  O-O {[%clk 0:03:00]} 8. Re1 {[%clk 0:02:55]}  Ne4 {[%clk 0:03:00]} 9. Bc2 {[%clk 0:02:51]}  Nd7 {[%clk 0:02:51]} 10. Nxe4 {[%clk 0:02:42]}  dxe4 {[%clk 0:02:51]} 11. Nd2 {[%clk 0:02:42]}  f5 {[%clk 0:02:52]} 12. f4 {[%clk 0:02:38]}  exf3 {[%clk 0:02:51]} 13. Nxf3 {[%clk 0:02:37]}  Nf6 {[%clk 0:02:46]} 14. a3 {[%clk 0:02:26]}  a5 {[%clk 0:02:37]} 15. d5 {[%clk 0:02:10]}  exd5 {[%clk 0:02:31]} 16. Bxf5 {[%clk 0:02:10]}  dxc4 {[%clk 0:02:30]} 17. e4 {[%clk 0:02:02]}  Bc5+ {[%clk 0:02:30]} 18. Be3 {[%clk 0:01:58]}  Qe7 {[%clk 0:02:18]} 19. Bxc5 {[%clk 0:01:53]}  Qxc5+ {[%clk 0:02:18]} 20. Qd4 {[%clk 0:01:53]}  Qxd4+ {[%clk 0:01:52]} 21. Nxd4 {[%clk 0:01:54]}  Rae8 {[%clk 0:01:21]} 22. e5 {[%clk 0:01:28]}  Nd5 {[%clk 0:01:20]} 23. Be4 {[%clk 0:00:32]}  g6 {[%clk 0:00:53]} 24. Bf3 {[%clk 0:00:20]}  Re7 {[%clk 0:00:40]} 25. Rad1 {[%clk 0:00:17]}  Rfe8 {[%clk 0:00:27]} 26. e6 {[%clk 0:00:14]}  c6 {[%clk 0:00:18]} 27. Bxd5 {[%clk 0:00:14]}  cxd5 {[%clk 0:00:19]} 28. Re5 {[%clk 0:00:14]}  Kg7 {[%clk 0:00:13]} 29. Rf1 {[%clk 0:00:13]}  Bc8 {[%clk 0:00:11]} 30. Rfe1 {[%clk 0:00:10]}  Bb7 {[%clk 0:00:02]} 31. Rf1 {[%clk 0:00:10]}  Rd8 {[%clk 0:00:02]} 32. g4 {[%clk 0:00:10]}  h6 {[%clk 0:00:02]} 33. h4 {[%clk 0:00:09]}  Rd6 {[%clk 0:00:02]} 34. g5 {[%clk 0:00:09]}  hxg5 {[%clk 0:00:03]} 35. hxg5 {[%clk 0:00:10]}  Bc8 {[%clk 0:00:03]} 36. Rf6 {[%clk 0:00:10]}  b5 {[%clk 0:00:03]} 37. Kf2 {[%clk 0:00:09]}  b4 {[%clk 0:00:03]} 38. axb4 {[%clk 0:00:10]}  axb4 {[%clk 0:00:04]} 39. Ke3 {[%clk 0:00:10]}  Ba6 {[%clk 0:00:02]} 40. Kd2 {[%clk 0:00:10]}  Bb7 {[%clk 0:00:01]} 41. Re1 {[%clk 0:00:10]}  Bc8 {[%clk 0:00:02]} 42. Re5 {[%clk 0:00:10]}  Bb7 {[%clk 0:00:02]} 43. Re3 {[%clk 0:00:10]}  Bc8 {[%clk 0:00:02]} 44. Re5 {[%clk 0:00:11]}  Bb7 {[%clk 0:00:02]} 1/2-1/2


[Site "https://www.chess.com"]

[Event "Titled Tuesday Blitz February 01 A 2022"]
[White "Stoleriu, George"]
[Black "Onyshchuk, Volodymyr"]
[WhiteFideId "1227505"]
[BlackFideId "14114038"]
[WhiteElo "2203"]
[BlackElo "2642"]
[Result "0-1"]
[Round "05"]
[TimeControl "180+1"]
[Date "2022.02.01"]
[WhiteClock "0:01:10"]
[BlackClock "0:01:10"]

1. e4 {[%clk 0:02:58]}  g6 {[%clk 0:02:59]} 2. d4 {[%clk 0:02:58]}  Bg7 {[%clk 0:02:59]} 3. Nc3 {[%clk 0:02:59]}  d6 {[%clk 0:02:59]} 4. Be3 {[%clk 0:02:58]}  a6 {[%clk 0:02:59]} 5. Qd2 {[%clk 0:02:58]}  b5 {[%clk 0:02:59]} 6. Bd3 {[%clk 0:02:59]}  Bb7 {[%clk 0:02:59]} 7. Nce2 {[%clk 0:02:59]}  Nf6 {[%clk 0:02:53]} 8. f3 {[%clk 0:02:59]}  Nbd7 {[%clk 0:02:50]} 9. c3 {[%clk 0:02:59]}  c5 {[%clk 0:02:49]} 10. h4 {[%clk 0:02:59]}  h6 {[%clk 0:02:46]} 11. Nh3 {[%clk 0:02:59]}  e5 {[%clk 0:02:36]} 12. d5 {[%clk 0:02:59]}  c4 {[%clk 0:02:27]} 13. Bc2 {[%clk 0:02:58]}  Nc5 {[%clk 0:02:21]} 14. Nf2 {[%clk 0:02:53]}  Nfd7 {[%clk 0:02:19]} 15. Ng4 {[%clk 0:02:46]}  h5 {[%clk 0:02:17]} 16. Nf2 {[%clk 0:02:43]}  a5 {[%clk 0:02:11]} 17. b4 {[%clk 0:02:22]}  axb4 {[%clk 0:01:56]} 18. cxb4 {[%clk 0:02:21]}  Na4 {[%clk 0:01:57]} 19. g3 {[%clk 0:02:17]}  Ndb6 {[%clk 0:01:50]} 20. O-O {[%clk 0:02:07]}  O-O {[%clk 0:01:49]} 21. Kg2 {[%clk 0:02:00]}  f5 {[%clk 0:01:49]} 22. exf5 {[%clk 0:01:47]}  gxf5 {[%clk 0:01:46]} 23. Bg5 {[%clk 0:01:47]}  Qd7 {[%clk 0:01:45]} 24. Bh6 {[%clk 0:01:44]}  Nxd5 {[%clk 0:01:41]} 25. Rad1 {[%clk 0:01:26]}  Bxh6 {[%clk 0:01:34]} 26. Qxh6 {[%clk 0:01:25]}  Rf6 {[%clk 0:01:35]} 27. Qxh5 {[%clk 0:01:25]}  Ne3+ {[%clk 0:01:33]} 28. Kh2 {[%clk 0:01:22]}  Nxc2 {[%clk 0:01:33]} 29. g4 {[%clk 0:01:20]}  Qh7 {[%clk 0:01:18]} 30. Qg5+ {[%clk 0:01:17]}  Rg6 {[%clk 0:01:16]} 31. Qxf5 {[%clk 0:01:13]}  Ne3 {[%clk 0:01:16]} 32. Qb1 {[%clk 0:01:10]}  Qxh4+ {[%clk 0:01:10]} 33. Kg1 {[%clk 0:01:10]}  Rh6 {[%clk 0:01:10]} 0-1


[Site "https://www.chess.com"]

[Event "Titled Tuesday Blitz February 01 A 2022"]
[White "Vokhidov, Shamsiddin"]
[Black "Le, Tuan Minh"]
[WhiteFideId "14204223"]
[BlackFideId "12401153"]
[WhiteElo "2611"]
[BlackElo "2450"]
[Result "0-1"]
[Round "05"]
[TimeControl "180+1"]
[Date "2022.02.01"]
[WhiteClock "0:00:01"]
[BlackClock "0:00:04"]

1. e4 {[%clk 0:03:00]}  c5 {[%clk 0:03:00]} 2. Nf3 {[%clk 0:03:00]}  Nf6 {[%clk 0:03:00]} 3. e5 {[%clk 0:03:00]}  Nd5 {[%clk 0:03:00]} 4. Nc3 {[%clk 0:03:00]}  e6 {[%clk 0:03:01]} 5. Ne4 {[%clk 0:02:55]}  f5 {[%clk 0:03:00]} 6. Nc3 {[%clk 0:02:53]}  Ne7 {[%clk 0:02:55]} 7. h4 {[%clk 0:02:52]}  Nbc6 {[%clk 0:02:51]} 8. Nb5 {[%clk 0:02:51]}  Ng6 {[%clk 0:02:49]} 9. Nd6+ {[%clk 0:02:50]}  Bxd6 {[%clk 0:02:48]} 10. exd6 {[%clk 0:02:51]}  Qf6 {[%clk 0:02:44]} 11. d4 {[%clk 0:02:32]}  Nxd4 {[%clk 0:02:41]} 12. Nxd4 {[%clk 0:02:26]}  cxd4 {[%clk 0:02:41]} 13. h5 {[%clk 0:02:20]}  Ne5 {[%clk 0:02:42]} 14. Bf4 {[%clk 0:01:59]}  Nf7 {[%clk 0:02:41]} 15. Bc4 {[%clk 0:01:45]}  b5 {[%clk 0:02:28]} 16. Bb3 {[%clk 0:01:45]}  O-O {[%clk 0:02:06]} 17. Qe2 {[%clk 0:01:44]}  a5 {[%clk 0:01:55]} 18. Qxb5 {[%clk 0:01:21]}  a4 {[%clk 0:01:54]} 19. Bxa4 {[%clk 0:01:08]}  e5 {[%clk 0:01:53]} 20. Bd2 {[%clk 0:01:08]}  Re8 {[%clk 0:01:21]} 21. O-O-O {[%clk 0:00:58]}  Kh8 {[%clk 0:01:16]} 22. h6 {[%clk 0:00:50]}  g6 {[%clk 0:01:16]} 23. f4 {[%clk 0:00:26]}  Nxd6 {[%clk 0:01:03]} 24. fxe5 {[%clk 0:00:18]}  Rxe5 {[%clk 0:00:18]} 25. Qb4 {[%clk 0:00:18]}  Rea5 {[%clk 0:00:15]} 26. Bb3 {[%clk 0:00:17]}  Rb5 {[%clk 0:00:13]} 27. Qxb5 {[%clk 0:00:06]}  Nxb5 {[%clk 0:00:13]} 28. Bd5 {[%clk 0:00:07]}  Bb7 {[%clk 0:00:09]} 29. Bxb7 {[%clk 0:00:06]}  Rxa2 {[%clk 0:00:10]} 30. Kb1 {[%clk 0:00:06]}  Ra7 {[%clk 0:00:10]} 31. Rhe1 {[%clk 0:00:04]}  Kg8 {[%clk 0:00:06]} 32. Bd5+ {[%clk 0:00:03]}  Kf8 {[%clk 0:00:07]} 33. Bb4+ {[%clk 0:00:03]}  d6 {[%clk 0:00:05]} 34. Re6 {[%clk 0:00:03]}  Qg5 {[%clk 0:00:04]} 35. Rde1 {[%clk 0:00:03]}  Qxh6 {[%clk 0:00:04]} 36. Re8+ {[%clk 0:00:02]}  Kg7 {[%clk 0:00:03]} 37. Rg8+ {[%clk 0:00:03]}  Kf6 {[%clk 0:00:04]} 38. Re6+ {[%clk 0:00:04]}  Kg5 {[%clk 0:00:03]} 39. Bd2+ {[%clk 0:00:04]}  f4 {[%clk 0:00:03]} 40. g3 {[%clk 0:00:04]}  Qh2 {[%clk 0:00:03]} 41. Bxf4+ {[%clk 0:00:04]}  Kg4 {[%clk 0:00:04]} 42. Re1 {[%clk 0:00:01]}  Rc7 {[%clk 0:00:03]} 43. Be6+ {[%clk 0:00:02]}  Kf3 {[%clk 0:00:03]} 44. Bd5+ {[%clk 0:00:01]}  Kf2 {[%clk 0:00:04]} 45. Rge8 {[%clk 0:00:01]}  d3 {[%clk 0:00:02]} 46. cxd3 {[%clk 0:00:01]}  Nd4 {[%clk 0:00:03]} 47. R8e4 {[%clk 0:00:01]}  Qh5 {[%clk 0:00:03]} 48. g4 {[%clk 0:00:01]}  Qf5 {[%clk 0:00:04]} 0-1


[Site "https://www.chess.com"]

[Event "Titled Tuesday Blitz February 01 A 2022"]
[White "Wong, Yinn Long"]
[Black "Andreikin, Dmitry"]
[WhiteFideId "5707684"]
[BlackFideId "4158814"]
[WhiteElo "2055"]
[BlackElo "2736"]
[Result "1/2-1/2"]
[Round "05"]
[TimeControl "180+1"]
[Date "2022.02.01"]
[WhiteClock "0:01:41"]
[BlackClock "0:02:17"]

1. e4 {[%clk 0:03:00]}  e6 {[%clk 0:02:56]} 2. d4 {[%clk 0:02:56]}  d5 {[%clk 0:02:57]} 3. Nc3 {[%clk 0:02:56]}  Bb4 {[%clk 0:02:56]} 4. e5 {[%clk 0:02:55]}  c5 {[%clk 0:02:56]} 5. Bd2 {[%clk 0:02:56]}  a6 {[%clk 0:02:54]} 6. Nce2 {[%clk 0:02:49]}  Bxd2+ {[%clk 0:02:51]} 7. Qxd2 {[%clk 0:02:50]}  cxd4 {[%clk 0:02:50]} 8. Nxd4 {[%clk 0:02:43]}  Ne7 {[%clk 0:02:50]} 9. O-O-O {[%clk 0:02:42]}  Nbc6 {[%clk 0:02:49]} 10. Ngf3 {[%clk 0:02:33]}  Bd7 {[%clk 0:02:47]} 11. Kb1 {[%clk 0:02:33]}  Qb6 {[%clk 0:02:44]} 12. h4 {[%clk 0:02:22]}  Nxd4 {[%clk 0:02:43]} 13. Nxd4 {[%clk 0:02:15]}  Nc6 {[%clk 0:02:44]} 14. Nf3 {[%clk 0:02:10]}  O-O-O {[%clk 0:02:40]} 15. h5 {[%clk 0:02:09]}  h6 {[%clk 0:02:39]} 16. Rh4 {[%clk 0:02:09]}  Kb8 {[%clk 0:02:30]} 17. Rg4 {[%clk 0:02:06]}  Rdg8 {[%clk 0:02:24]} 18. Bd3 {[%clk 0:01:56]}  Ka8 {[%clk 0:02:23]} 19. Rf4 {[%clk 0:01:40]}  Rf8 {[%clk 0:02:21]} 20. Rg4 {[%clk 0:01:41]}  Rfg8 {[%clk 0:02:19]} 21. Rf4 {[%clk 0:01:41]}  Rf8 {[%clk 0:02:17]} 22. Rg4 {[%clk 0:01:41]}  Rfg8 {[%clk 0:02:17]} 1/2-1/2


[Site "https://www.chess.com"]

[Event "Titled Tuesday Blitz February 01 A 2022"]
[White "Alonso Rosell, Alvar"]
[Black "Savchenko, Boris"]
[WhiteFideId "2270544"]
[BlackFideId "4147332"]
[WhiteElo "2518"]
[BlackElo "2512"]
[Result "0-1"]
[Round "06"]
[TimeControl "180+1"]
[Date "2022.02.01"]
[WhiteClock "0:00:02"]
[BlackClock "0:02:06"]

1. d4 {[%clk 0:03:00]}  Nf6 {[%clk 0:02:59]} 2. Bf4 {[%clk 0:03:00]}  e6 {[%clk 0:03:00]} 3. e3 {[%clk 0:03:00]}  a6 {[%clk 0:02:59]} 4. Nf3 {[%clk 0:02:56]}  b5 {[%clk 0:03:00]} 5. h3 {[%clk 0:02:57]}  Bb7 {[%clk 0:03:00]} 6. Nbd2 {[%clk 0:02:45]}  Bd6 {[%clk 0:03:00]} 7. Bxd6 {[%clk 0:02:36]}  cxd6 {[%clk 0:03:01]} 8. a4 {[%clk 0:02:36]}  b4 {[%clk 0:03:01]} 9. Nc4 {[%clk 0:02:36]}  Qc7 {[%clk 0:03:00]} 10. a5 {[%clk 0:02:36]}  O-O {[%clk 0:02:57]} 11. Qd2 {[%clk 0:02:02]}  Nc6 {[%clk 0:02:57]} 12. Bd3 {[%clk 0:01:44]}  d5 {[%clk 0:02:53]} 13. Nce5 {[%clk 0:01:38]}  Ne4 {[%clk 0:02:48]} 14. Qe2 {[%clk 0:01:32]}  Nc3 {[%clk 0:02:28]} 15. Bxh7+ {[%clk 0:01:05]}  Kxh7 {[%clk 0:02:27]} 16. Ng5+ {[%clk 0:01:04]}  Kh6 {[%clk 0:02:27]} 17. Qg4 {[%clk 0:00:47]}  Nxe5 {[%clk 0:02:17]} 18. dxe5 {[%clk 0:00:12]}  Qxe5 {[%clk 0:02:16]} 19. Qh4+ {[%clk 0:00:11]}  Kg6 {[%clk 0:02:16]} 20. Nf3 {[%clk 0:00:11]}  Qf6 {[%clk 0:02:08]} 21. Qxb4 {[%clk 0:00:07]}  Nb5 {[%clk 0:02:06]} 22. c4 {[%clk 0:00:02]}  dxc4 {[%clk 0:02:06]} 0-1


[Site "https://www.chess.com"]

[Event "Titled Tuesday Blitz February 01 A 2022"]
[White "Andreikin, Dmitry"]
[Black "Lenderman, Aleksandr"]
[WhiteFideId "4158814"]
[BlackFideId "2021285"]
[WhiteElo "3030"]
[BlackElo "2885"]
[Result "1-0"]
[Round "06"]
[TimeControl "180+1"]
[Date "2022.02.01"]
[WhiteClock "0:00:32"]
[BlackClock "0:00:05"]

1. d4 {[%clk 0:03:00]}  e6 {[%clk 0:02:59]} 2. Nf3 {[%clk 0:02:57]}  Nf6 {[%clk 0:02:55]} 3. Bf4 {[%clk 0:02:54]}  b6 {[%clk 0:02:51]} 4. Nbd2 {[%clk 0:02:53]}  Bb7 {[%clk 0:02:50]} 5. e3 {[%clk 0:02:53]}  h6 {[%clk 0:02:49]} 6. h3 {[%clk 0:02:52]}  Bd6 {[%clk 0:02:49]} 7. Bxd6 {[%clk 0:02:42]}  cxd6 {[%clk 0:02:50]} 8. c4 {[%clk 0:02:36]}  O-O {[%clk 0:02:49]} 9. Rc1 {[%clk 0:02:35]}  d5 {[%clk 0:02:48]} 10. c5 {[%clk 0:02:33]}  bxc5 {[%clk 0:02:46]} 11. Rxc5 {[%clk 0:02:33]}  d6 {[%clk 0:02:35]} 12. Rc3 {[%clk 0:02:30]}  Qa5 {[%clk 0:02:27]} 13. Ra3 {[%clk 0:02:27]}  Qc7 {[%clk 0:02:26]} 14. Rc3 {[%clk 0:02:27]}  Qa5 {[%clk 0:02:26]} 15. Bd3 {[%clk 0:02:23]}  Nc6 {[%clk 0:02:12]} 16. O-O {[%clk 0:02:23]}  Nb4 {[%clk 0:02:12]} 17. Bb1 {[%clk 0:02:15]}  Rfc8 {[%clk 0:02:12]} 18. Qb3 {[%clk 0:02:12]}  Ba6 {[%clk 0:02:02]} 19. Rfc1 {[%clk 0:02:12]}  Rxc3 {[%clk 0:02:02]} 20. Qxc3 {[%clk 0:02:12]}  Qb5 {[%clk 0:01:18]} 21. a3 {[%clk 0:01:45]}  Nd3 {[%clk 0:01:18]} 22. Bxd3 {[%clk 0:01:38]}  Qxd3 {[%clk 0:01:17]} 23. Qxd3 {[%clk 0:01:30]}  Bxd3 {[%clk 0:01:18]} 24. Rc6 {[%clk 0:01:26]}  Ne4 {[%clk 0:01:05]} 25. Nxe4 {[%clk 0:01:23]}  dxe4 {[%clk 0:01:06]} 26. Nd2 {[%clk 0:01:23]}  a5 {[%clk 0:00:59]} 27. Rxd6 {[%clk 0:01:16]}  Rc8 {[%clk 0:00:51]} 28. Nb3 {[%clk 0:01:13]}  Rc2 {[%clk 0:00:45]} 29. Nxa5 {[%clk 0:01:13]}  Rxb2 {[%clk 0:00:45]} 30. Nc6 {[%clk 0:01:08]}  Ra2 {[%clk 0:00:43]} 31. Ne5 {[%clk 0:01:05]}  f6 {[%clk 0:00:37]} 32. Nd7 {[%clk 0:01:06]}  Kf7 {[%clk 0:00:28]} 33. Nc5 {[%clk 0:01:05]}  Bc4 {[%clk 0:00:21]} 34. a4 {[%clk 0:01:02]}  Bd5 {[%clk 0:00:20]} 35. Rd7+ {[%clk 0:00:58]}  Kg8 {[%clk 0:00:20]} 36. Re7 {[%clk 0:00:57]}  Kf8 {[%clk 0:00:17]} 37. Ra7 {[%clk 0:00:58]}  g5 {[%clk 0:00:16]} 38. a5 {[%clk 0:00:50]}  h5 {[%clk 0:00:15]} 39. a6 {[%clk 0:00:50]}  Ra1+ {[%clk 0:00:16]} 40. Kh2 {[%clk 0:00:51]}  Ra2 {[%clk 0:00:16]} 41. Rd7 {[%clk 0:00:42]}  Rxf2 {[%clk 0:00:13]} 42. a7 {[%clk 0:00:42]}  Ra2 {[%clk 0:00:13]} 43. Nxe6+ {[%clk 0:00:40]}  Bxe6 {[%clk 0:00:12]} 44. Rd8+ {[%clk 0:00:41]}  Ke7 {[%clk 0:00:12]} 45. a8=Q {[%clk 0:00:41]}  Rxa8 {[%clk 0:00:12]} 46. Rxa8 {[%clk 0:00:42]}  f5 {[%clk 0:00:13]} 47. g3 {[%clk 0:00:36]}  Bc4 {[%clk 0:00:09]} 48. Ra5 {[%clk 0:00:35]}  Kf6 {[%clk 0:00:09]} 49. h4 {[%clk 0:00:35]}  gxh4 {[%clk 0:00:08]} 50. gxh4 {[%clk 0:00:35]}  f4 {[%clk 0:00:08]} 51. exf4 {[%clk 0:00:34]}  e3 {[%clk 0:00:09]} 52. Rxh5 {[%clk 0:00:32]}  e2 {[%clk 0:00:05]} 53. Re5 {[%clk 0:00:32]} 1-0


[Site "https://www.chess.com"]

[Event "Titled Tuesday Blitz February 01 A 2022"]
[White "Bashirli, Nail"]
[Black "Moroni, Luca Jr"]
[WhiteFideId "13406809"]
[BlackFideId "865834"]
[WhiteElo "2333"]
[BlackElo "2573"]
[Result "1-0"]
[Round "06"]
[TimeControl "180+1"]
[Date "2022.02.01"]
[WhiteClock "0:01:13"]
[BlackClock "0:00:07"]

1. e4 {[%clk 0:03:00]}  e5 {[%clk 0:02:57]} 2. Nf3 {[%clk 0:02:59]}  Nc6 {[%clk 0:02:57]} 3. Nc3 {[%clk 0:02:59]}  Nf6 {[%clk 0:02:57]} 4. Bb5 {[%clk 0:02:59]}  Bd6 {[%clk 0:02:56]} 5. g4 {[%clk 0:02:59]}  h6 {[%clk 0:02:49]} 6. Rg1 {[%clk 0:02:58]}  Nd4 {[%clk 0:02:47]} 7. d3 {[%clk 0:02:57]}  g5 {[%clk 0:02:35]} 8. Be3 {[%clk 0:02:56]}  Nxf3+ {[%clk 0:02:15]} 9. Qxf3 {[%clk 0:02:54]}  Bb4 {[%clk 0:02:08]} 10. d4 {[%clk 0:02:53]}  Qe7 {[%clk 0:01:56]} 11. O-O-O {[%clk 0:02:39]}  Bxc3 {[%clk 0:01:52]} 12. bxc3 {[%clk 0:02:40]}  c6 {[%clk 0:01:32]} 13. dxe5 {[%clk 0:02:32]}  Nh7 {[%clk 0:01:12]} 14. Bc4 {[%clk 0:02:26]}  Nf8 {[%clk 0:01:12]} 15. Bc5 {[%clk 0:02:12]}  Qxc5 {[%clk 0:00:57]} 16. Bxf7+ {[%clk 0:02:12]}  Kd8 {[%clk 0:00:57]} 17. Qf6+ {[%clk 0:02:11]}  Qe7 {[%clk 0:00:55]} 18. Qxh8 {[%clk 0:02:08]}  Qxf7 {[%clk 0:00:55]} 19. Qxh6 {[%clk 0:02:08]}  Ne6 {[%clk 0:00:40]} 20. Qf6+ {[%clk 0:02:08]}  Qxf6 {[%clk 0:00:37]} 21. exf6 {[%clk 0:02:09]}  Ke8 {[%clk 0:00:37]} 22. h4 {[%clk 0:02:07]}  Kf7 {[%clk 0:00:35]} 23. e5 {[%clk 0:01:37]}  gxh4 {[%clk 0:00:20]} 24. Rh1 {[%clk 0:01:32]}  d5 {[%clk 0:00:10]} 25. Rxh4 {[%clk 0:01:32]}  Kg6 {[%clk 0:00:09]} 26. Rh8 {[%clk 0:01:29]}  b6 {[%clk 0:00:07]} 27. Rf1 {[%clk 0:01:23]}  Bb7 {[%clk 0:00:06]} 28. Rxa8 {[%clk 0:01:23]}  Bxa8 {[%clk 0:00:07]} 29. f4 {[%clk 0:01:22]}  Kf7 {[%clk 0:00:07]} 30. f5 {[%clk 0:01:17]}  Ng5 {[%clk 0:00:07]} 31. Rh1 {[%clk 0:01:16]}  c5 {[%clk 0:00:07]} 32. Rh5 {[%clk 0:01:15]}  Nf3 {[%clk 0:00:07]} 33. Rh7+ {[%clk 0:01:14]}  Kg8 {[%clk 0:00:07]} 34. Rg7+ {[%clk 0:01:13]}  Kf8 {[%clk 0:00:07]} 35. e6 {[%clk 0:01:13]}  Bc6 {[%clk 0:00:07]} 36. e7+ {[%clk 0:01:12]}  Ke8 {[%clk 0:00:07]} 37. Rg8+ {[%clk 0:01:13]}  Kf7 {[%clk 0:00:07]} 38. Rf8# {[%clk 0:01:13]} 1-0


[Site "https://www.chess.com"]

[Event "Titled Tuesday Blitz February 01 A 2022"]
[White "Bluebaum, Matthias"]
[Black "Jaskolka, Tomasz"]
[WhiteFideId "24651516"]
[BlackFideId "1170791"]
[WhiteElo "2550"]
[BlackElo "2054"]
[Result "1-0"]
[Round "06"]
[TimeControl "180+1"]
[Date "2022.02.01"]
[WhiteClock "0:00:33"]
[BlackClock "0:00:05"]

1. d4 {[%clk 0:03:00]}  Nf6 {[%clk 0:02:56]} 2. c4 {[%clk 0:03:00]}  e6 {[%clk 0:02:56]} 3. Nc3 {[%clk 0:03:01]}  Bb4 {[%clk 0:02:56]} 4. e3 {[%clk 0:03:01]}  O-O {[%clk 0:02:55]} 5. Bd2 {[%clk 0:03:02]}  Re8 {[%clk 0:02:55]} 6. Nf3 {[%clk 0:03:01]}  d6 {[%clk 0:02:55]} 7. a3 {[%clk 0:02:59]}  Bxc3 {[%clk 0:02:53]} 8. Bxc3 {[%clk 0:03:00]}  b6 {[%clk 0:02:53]} 9. Bd3 {[%clk 0:03:00]}  Bb7 {[%clk 0:02:54]} 10. Qc2 {[%clk 0:02:58]}  Nbd7 {[%clk 0:02:49]} 11. O-O-O {[%clk 0:02:56]}  Qe7 {[%clk 0:02:40]} 12. e4 {[%clk 0:02:51]}  e5 {[%clk 0:02:39]} 13. Rhe1 {[%clk 0:02:51]}  c5 {[%clk 0:02:35]} 14. d5 {[%clk 0:02:31]}  a6 {[%clk 0:02:07]} 15. Nh4 {[%clk 0:02:29]}  g6 {[%clk 0:02:05]} 16. f4 {[%clk 0:02:25]}  Nxd5 {[%clk 0:01:58]} 17. Nxg6 {[%clk 0:02:22]}  hxg6 {[%clk 0:01:58]} 18. exd5 {[%clk 0:02:22]}  b5 {[%clk 0:01:52]} 19. cxb5 {[%clk 0:02:17]}  axb5 {[%clk 0:01:48]} 20. Bxb5 {[%clk 0:02:17]}  Red8 {[%clk 0:01:26]} 21. Bxd7 {[%clk 0:02:14]}  Rxd7 {[%clk 0:01:21]} 22. fxe5 {[%clk 0:02:15]}  dxe5 {[%clk 0:01:21]} 23. Rxe5 {[%clk 0:02:15]}  Qh4 {[%clk 0:01:15]} 24. g3 {[%clk 0:02:11]}  Qc4 {[%clk 0:01:10]} 25. Qf2 {[%clk 0:01:51]}  f5 {[%clk 0:00:18]} 26. Re6 {[%clk 0:01:40]}  Rxa3 {[%clk 0:00:16]} 27. Qe3 {[%clk 0:00:43]}  Ra1+ {[%clk 0:00:14]} 28. Kc2 {[%clk 0:00:44]}  Bxd5 {[%clk 0:00:07]} 29. Re8+ {[%clk 0:00:44]}  Kf7 {[%clk 0:00:07]} 30. Rxa1 {[%clk 0:00:41]}  Qb3+ {[%clk 0:00:06]} 31. Kc1 {[%clk 0:00:41]}  Be4 {[%clk 0:00:06]} 32. Rf8+ {[%clk 0:00:32]}  Kxf8 {[%clk 0:00:06]} 33. Bg7+ {[%clk 0:00:32]}  Kxg7 {[%clk 0:00:07]} 34. Qxb3 {[%clk 0:00:33]}  c4 {[%clk 0:00:06]} 35. Qc3+ {[%clk 0:00:33]}  Kh6 {[%clk 0:00:05]} 36. Qh8+ {[%clk 0:00:33]}  Kg5 {[%clk 0:00:05]} 37. Qh4# {[%clk 0:00:33]} 1-0


[Site "https://www.chess.com"]

[Event "Titled Tuesday Blitz February 01 A 2022"]
[White "Deac, Bogdan-Daniel"]
[Black "Bacrot, Etienne"]
[WhiteFideId "1226380"]
[BlackFideId "605506"]
[WhiteElo "3038"]
[BlackElo "2845"]
[Result "0-1"]
[Round "06"]
[TimeControl "180+1"]
[Date "2022.02.01"]
[WhiteClock "0:00:02"]
[BlackClock "0:00:23"]

1. d4 {[%clk 0:03:00]}  Nf6 {[%clk 0:02:59]} 2. c4 {[%clk 0:03:00]}  c5 {[%clk 0:02:59]} 3. Nf3 {[%clk 0:02:53]}  cxd4 {[%clk 0:02:59]} 4. Nxd4 {[%clk 0:02:54]}  e5 {[%clk 0:02:59]} 5. Nb5 {[%clk 0:02:54]}  d5 {[%clk 0:02:56]} 6. cxd5 {[%clk 0:02:55]}  Bc5 {[%clk 0:02:55]} 7. N5c3 {[%clk 0:02:54]}  O-O {[%clk 0:02:54]} 8. g3 {[%clk 0:02:53]}  e4 {[%clk 0:02:53]} 9. Bg2 {[%clk 0:02:49]}  Re8 {[%clk 0:02:53]} 10. O-O {[%clk 0:02:36]}  Bf5 {[%clk 0:02:53]} 11. e3 {[%clk 0:02:31]}  Nbd7 {[%clk 0:02:52]} 12. Nd2 {[%clk 0:02:32]}  h5 {[%clk 0:02:51]} 13. h3 {[%clk 0:01:59]}  Rc8 {[%clk 0:02:50]} 14. Nb3 {[%clk 0:01:58]}  Bd6 {[%clk 0:02:34]} 15. Nd4 {[%clk 0:01:55]}  Bg6 {[%clk 0:02:34]} 16. h4 {[%clk 0:01:37]}  Ne5 {[%clk 0:02:30]} 17. Bd2 {[%clk 0:01:36]}  a6 {[%clk 0:02:22]} 18. Qb3 {[%clk 0:01:26]}  Qd7 {[%clk 0:02:16]} 19. Nce2 {[%clk 0:01:12]}  Nf3+ {[%clk 0:01:38]} 20. Nxf3 {[%clk 0:01:07]}  exf3 {[%clk 0:01:38]} 21. Bxf3 {[%clk 0:01:08]}  Bc2 {[%clk 0:01:38]} 22. Qb6 {[%clk 0:00:57]}  Ne4 {[%clk 0:01:25]} 23. Bb4 {[%clk 0:00:32]}  Bc7 {[%clk 0:01:25]} 24. Qa7 {[%clk 0:00:17]}  a5 {[%clk 0:01:14]} 25. Bc3 {[%clk 0:00:17]}  b6 {[%clk 0:00:50]} 26. Qb7 {[%clk 0:00:10]}  Bd3 {[%clk 0:00:37]} 27. Rad1 {[%clk 0:00:09]}  Qf5 {[%clk 0:00:29]} 28. Kg2 {[%clk 0:00:06]}  Nc5 {[%clk 0:00:23]} 29. Qc6 {[%clk 0:00:04]}  Qxf3+ {[%clk 0:00:23]} 30. Kxf3 {[%clk 0:00:02]}  Be4# {[%clk 0:00:23]} 0-1


[Site "https://www.chess.com"]